[Event "Late-Titled-Tuesday-Blitz-May-28-2024"]
[Site "Chess.com"]
[Date "2024.05.28"]
[Round "1"]
[White "Caterpiller35"]
[Black "GoltsevDmitry2000"]
[Result "1-0"]
[WhiteElo "2452"]
[BlackElo "2747"]
[TimeControl "180+1"]
[EndTime "14:08:02 PDT"]
[Termination "Caterpiller35 won on time"]

1. d4 {[%clk 0:02:59.4]} 1... e6 {[%clk 0:02:56.5]} 2. Nf3 {[%clk 0:02:58.7]}
2... d5 {[%clk 0:02:56]} 3. Bf4 {[%clk 0:02:57.8]} 3... Nf6 {[%clk 0:02:56.1]}
4. e3 {[%clk 0:02:58.1]} 4... c5 {[%clk 0:02:56.4]} 5. c3 {[%clk 0:02:58.1]}
5... Nc6 {[%clk 0:02:56.9]} 6. Nbd2 {[%clk 0:02:58.2]} 6... a6 {[%clk
0:02:57.3]} 7. Bd3 {[%clk 0:02:57.8]} 7... Bd6 {[%clk 0:02:55.2]} 8. Bg3 {[%clk
0:02:57.4]} 8... O-O {[%clk 0:02:55.2]} 9. O-O {[%clk 0:02:56.6]} 9... Re8
{[%clk 0:02:55.7]} 10. Ne5 {[%clk 0:02:52]} 10... Qe7 {[%clk 0:02:53.7]} 11. f4
{[%clk 0:02:52]} 11... Nd7 {[%clk 0:02:53.4]} 12. Qh5 {[%clk 0:02:48.6]} 12...
f5 {[%clk 0:02:51.7]} 13. Bh4 {[%clk 0:02:47.6]} 13... Nf6 {[%clk 0:02:49.6]}
14. Qf3 {[%clk 0:02:44.9]} 14... Qf8 {[%clk 0:02:37.2]} 15. h3 {[%clk
0:02:33.1]} 15... Ne4 {[%clk 0:02:31.5]} 16. Rad1 {[%clk 0:02:22.8]} 16... Ne7
{[%clk 0:02:22.4]} 17. g4 {[%clk 0:01:50.3]} 17... b5 {[%clk 0:02:19.2]} 18. Kh2
{[%clk 0:01:45.1]} 18... Bb7 {[%clk 0:02:17.3]} 19. Bxe7 {[%clk 0:01:39.5]}
19... Qxe7 {[%clk 0:02:14]} 20. Rg1 {[%clk 0:01:39.5]} 20... Rf8 {[%clk
0:02:06.1]} 21. Rg2 {[%clk 0:01:37.2]} 21... Rac8 {[%clk 0:01:44.1]} 22. Rdg1
{[%clk 0:01:35.5]} 22... Rc7 {[%clk 0:01:43.8]} 23. gxf5 {[%clk 0:01:32]} 23...
exf5 {[%clk 0:01:43.5]} 24. Qh5 {[%clk 0:01:25.7]} 24... b4 {[%clk 0:01:32.2]}
25. Ndf3 {[%clk 0:01:21.9]} 25... Bc8 {[%clk 0:01:01]} 26. Bxe4 {[%clk
0:01:02.1]} 26... fxe4 {[%clk 0:00:57]} 27. Ng5 {[%clk 0:01:02]} 27... Bf5
{[%clk 0:00:56.6]} 28. Ng4 {[%clk 0:00:39.5]} 28... Bg6 {[%clk 0:00:33.4]} 29.
Qh4 {[%clk 0:00:39.5]} 29... Rf5 {[%clk 0:00:29.1]} 30. Ne5 {[%clk 0:00:38.9]}
30... Bxe5 {[%clk 0:00:23.9]} 31. dxe5 {[%clk 0:00:36]} 31... bxc3 {[%clk
0:00:18.9]} 32. bxc3 {[%clk 0:00:36.1]} 32... Rb7 {[%clk 0:00:19.7]} 33. Qg4
{[%clk 0:00:36]} 33... Rb6 {[%clk 0:00:09.7]} 34. h4 {[%clk 0:00:35.8]} 34... h6
{[%clk 0:00:06.3]} 35. Nh3 {[%clk 0:00:34.6]} 35... Rh5 {[%clk 0:00:06.8]} 36.
c4 {[%clk 0:00:26.6]} 36... Rxh4 {[%clk 0:00:03.9]} 37. Qc8+ {[%clk 0:00:25.3]}
37... Kh7 {[%clk 0:00:04.3]} 38. cxd5 {[%clk 0:00:21.6]} 38... Qf7 {[%clk
0:00:04.3]} 39. e6 {[%clk 0:00:20.5]} 39... Qf5 {[%clk 0:00:04.5]} 40. Rg3
{[%clk 0:00:20.5]} 40... Rb2+ {[%clk 0:00:01.4]} 41. R1g2 {[%clk 0:00:20.7]}
41... Rxg2+ {[%clk 0:00:02.1]} 42. Kxg2 {[%clk 0:00:21.6]} 42... Qxd5 {[%clk
0:00:02.6]} 43. e7 {[%clk 0:00:21.8]} 43... Qd2+ {[%clk 0:00:03.1]} 44. Nf2
{[%clk 0:00:22.3]} 44... Rh1 {[%clk 0:00:02.9]} 45. Kxh1 {[%clk 0:00:21.5]}
45... Qxf2 {[%clk 0:00:03.4]} 46. Rxg6 {[%clk 0:00:21.9]} 46... Qf1+ {[%clk
0:00:03]} 47. Kh2 {[%clk 0:00:21]} 47... Qf2+ {[%clk 0:00:03.4]} 48. Kh1 {[%clk
0:00:21.4]} 48... Qf3+ {[%clk 0:00:03.3]} 49. Rg2 {[%clk 0:00:20.9]} 49... Qd1+
{[%clk 0:00:03.5]} 50. Kh2 {[%clk 0:00:21]} 50... Qh5+ {[%clk 0:00:03.8]} 51.
Kg1 {[%clk 0:00:21.4]} 51... Qd1+ {[%clk 0:00:03.9]} 52. Kh2 {[%clk 0:00:21.8]}
52... Qh5+ {[%clk 0:00:04.1]} 53. Kg3 {[%clk 0:00:22.3]} 53... Qf3+ {[%clk
0:00:04.4]} 54. Kh4 {[%clk 0:00:20.5]} 54... Qxg2 {[%clk 0:00:04.6]} 55. Qf5+
{[%clk 0:00:19.2]} 1-0

[Event "Late-Titled-Tuesday-Blitz-May-28-2024"]
[Site "Chess.com"]
[Date "2024.05.28"]
[Round "1"]
[White "Sanan_Sjugirov"]
[Black "N_Mullodzhanov"]
[Result "1-0"]
[WhiteElo "2990"]
[BlackElo "2518"]
[TimeControl "180+1"]
[EndTime "14:08:07 PDT"]
[Termination "Sanan_Sjugirov won by checkmate"]

1. e4 {[%clk 0:03:00.9]} 1... c6 {[%clk 0:02:59.5]} 2. d4 {[%clk 0:03:00.9]}
2... d5 {[%clk 0:02:59.3]} 3. Nc3 {[%clk 0:03:01.2]} 3... dxe4 {[%clk
0:02:58.6]} 4. Nxe4 {[%clk 0:03:02.1]} 4... Bf5 {[%clk 0:02:59]} 5. Ng3 {[%clk
0:03:02.1]} 5... Bg6 {[%clk 0:02:59.4]} 6. Nf3 {[%clk 0:03:02.7]} 6... Nd7
{[%clk 0:02:56.5]} 7. Bd3 {[%clk 0:03:03.1]} 7... Bxd3 {[%clk 0:02:56.3]} 8.
Qxd3 {[%clk 0:03:04]} 8... e6 {[%clk 0:02:56.9]} 9. O-O {[%clk 0:03:04.6]} 9...
Ngf6 {[%clk 0:02:56.8]} 10. Bf4 {[%clk 0:03:04.1]} 10... Nd5 {[%clk 0:02:53.7]}
11. Bd2 {[%clk 0:03:03.9]} 11... Be7 {[%clk 0:02:52.1]} 12. c4 {[%clk
0:03:04.1]} 12... N5f6 {[%clk 0:02:50.5]} 13. Bf4 {[%clk 0:03:03.3]} 13... O-O
{[%clk 0:02:48.3]} 14. Rad1 {[%clk 0:03:03.4]} 14... Nb6 {[%clk 0:02:45.6]} 15.
Rfe1 {[%clk 0:02:59.9]} 15... c5 {[%clk 0:02:40.5]} 16. Qe2 {[%clk 0:02:48.2]}
16... cxd4 {[%clk 0:02:33.9]} 17. Nxd4 {[%clk 0:02:48.3]} 17... Qc8 {[%clk
0:02:29.5]} 18. b3 {[%clk 0:02:47]} 18... Bb4 {[%clk 0:02:21.9]} 19. Rf1 {[%clk
0:02:46.9]} 19... a6 {[%clk 0:02:13]} 20. Nf3 {[%clk 0:02:20.3]} 20... Nbd7
{[%clk 0:02:05.5]} 21. Ne5 {[%clk 0:02:20]} 21... Rd8 {[%clk 0:01:57.3]} 22. Bg5
{[%clk 0:02:06.3]} 22... Bc3 {[%clk 0:01:50]} 23. Nxd7 {[%clk 0:01:54.7]} 23...
Rxd7 {[%clk 0:01:48.1]} 24. Qe3 {[%clk 0:01:41.6]} 24... Bb2 {[%clk 0:01:29.5]}
25. Rd2 {[%clk 0:01:32.2]} 25... Rxd2 {[%clk 0:01:22.6]} 26. Qxd2 {[%clk
0:01:33.1]} 26... Qc5 {[%clk 0:01:19.9]} 27. Be3 {[%clk 0:01:15.9]} 27... Qe5
{[%clk 0:01:14.2]} 28. Rd1 {[%clk 0:01:13.3]} 28... h6 {[%clk 0:00:56.1]} 29.
Bf4 {[%clk 0:00:51.5]} 29... Qc3 {[%clk 0:00:53.3]} 30. Qe2 {[%clk 0:00:43.6]}
30... e5 {[%clk 0:00:38.2]} 31. Be3 {[%clk 0:00:41.1]} 31... Ba3 {[%clk
0:00:33.4]} 32. Nf5 {[%clk 0:00:38.7]} 32... Bf8 {[%clk 0:00:29.1]} 33. h3
{[%clk 0:00:37.2]} 33... Qa5 {[%clk 0:00:25]} 34. Qf3 {[%clk 0:00:29.3]} 34...
Qc7 {[%clk 0:00:20.3]} 35. Nxh6+ {[%clk 0:00:27.9]} 35... Kh7 {[%clk 0:00:11.6]}
36. Ng4 {[%clk 0:00:22.4]} 36... Nxg4 {[%clk 0:00:11.9]} 37. Qxg4 {[%clk
0:00:22.9]} 37... g6 {[%clk 0:00:09.9]} 38. Rd7 {[%clk 0:00:22.4]} 38... Qc8
{[%clk 0:00:07.1]} 39. Rxf7+ {[%clk 0:00:22]} 39... Bg7 {[%clk 0:00:07.5]} 40.
Qxc8 {[%clk 0:00:15.7]} 40... Rxc8 {[%clk 0:00:08.4]} 41. Rxb7 {[%clk
0:00:16.1]} 41... Rd8 {[%clk 0:00:09.1]} 42. g3 {[%clk 0:00:15.3]} 42... Rd1+
{[%clk 0:00:08.6]} 43. Kg2 {[%clk 0:00:15.4]} 43... Ra1 {[%clk 0:00:09.5]} 44.
a4 {[%clk 0:00:12.9]} 44... Rb1 {[%clk 0:00:09.6]} 45. c5 {[%clk 0:00:13]} 45...
Kg8 {[%clk 0:00:08.4]} 46. c6 {[%clk 0:00:13.2]} 46... Rb2 {[%clk 0:00:05.1]}
47. c7 {[%clk 0:00:13.6]} 47... Rc2 {[%clk 0:00:05.5]} 48. Rb8+ {[%clk
0:00:13.6]} 48... Kf7 {[%clk 0:00:06]} 49. c8=Q {[%clk 0:00:14.5]} 49... Rxc8
{[%clk 0:00:06]} 50. Rxc8 {[%clk 0:00:15.4]} 50... Bf8 {[%clk 0:00:06.6]} 51.
Rc6 {[%clk 0:00:14.5]} 51... a5 {[%clk 0:00:06]} 52. Bd2 {[%clk 0:00:14.7]}
52... Bb4 {[%clk 0:00:05.9]} 53. Bxb4 {[%clk 0:00:14.9]} 53... axb4 {[%clk
0:00:06.8]} 54. a5 {[%clk 0:00:15.6]} 54... e4 {[%clk 0:00:06.6]} 55. Rc4 {[%clk
0:00:16.5]} 55... g5 {[%clk 0:00:05.8]} 56. Rxe4 {[%clk 0:00:16.4]} 56... Kg6
{[%clk 0:00:06.6]} 57. g4 {[%clk 0:00:16.1]} 57... Kf6 {[%clk 0:00:06.1]} 58. f3
{[%clk 0:00:17]} 58... Kg6 {[%clk 0:00:06.2]} 59. a6 {[%clk 0:00:17.9]} 59...
Kf6 {[%clk 0:00:06.9]} 60. a7 {[%clk 0:00:18.8]} 60... Kg6 {[%clk 0:00:07.4]}
61. a8=Q {[%clk 0:00:19.7]} 61... Kf6 {[%clk 0:00:08.3]} 62. Qc6+ {[%clk
0:00:19.8]} 62... Kf7 {[%clk 0:00:08.7]} 63. Rxb4 {[%clk 0:00:18.3]} 63... Kf8
{[%clk 0:00:08.5]} 64. Rb8+ {[%clk 0:00:18.1]} 64... Ke7 {[%clk 0:00:08.7]} 65.
Rb7+ {[%clk 0:00:18.6]} 65... Kd8 {[%clk 0:00:09.2]} 66. Qd7# {[%clk 0:00:18.8]}
1-0

[Event "Late-Titled-Tuesday-Blitz-May-28-2024"]
[Site "Chess.com"]
[Date "2024.05.28"]
[Round "1"]
[White "Mikhail_Golubev"]
[Black "Beaterawn"]
[Result "1/2-1/2"]
[WhiteElo "2639"]
[BlackElo "2365"]
[TimeControl "180+1"]
[EndTime "14:08:08 PDT"]
[Termination "Game drawn by repetition"]

1. e4 {[%clk 0:03:00.9]} 1... c5 {[%clk 0:03:00]} 2. Nf3 {[%clk 0:02:59.9]} 2...
e6 {[%clk 0:03:00.1]} 3. d4 {[%clk 0:03:00]} 3... cxd4 {[%clk 0:03:01]} 4. Nxd4
{[%clk 0:03:00.1]} 4... a6 {[%clk 0:03:01.4]} 5. Bd3 {[%clk 0:02:59]} 5... Nf6
{[%clk 0:03:01]} 6. O-O {[%clk 0:02:56.6]} 6... Qc7 {[%clk 0:03:01]} 7. Qe2
{[%clk 0:02:55]} 7... d6 {[%clk 0:02:55.4]} 8. c4 {[%clk 0:02:54.3]} 8... Be7
{[%clk 0:02:55]} 9. Nc3 {[%clk 0:02:54]} 9... Nbd7 {[%clk 0:02:53.6]} 10. f4
{[%clk 0:02:46.2]} 10... b6 {[%clk 0:02:53.2]} 11. f5 {[%clk 0:02:37.6]} 11...
e5 {[%clk 0:02:51.8]} 12. Nc2 {[%clk 0:02:37.3]} 12... Bb7 {[%clk 0:02:39.3]}
13. Ne3 {[%clk 0:02:31.6]} 13... Nc5 {[%clk 0:02:36.5]} 14. Ned5 {[%clk
0:02:23.2]} 14... Bxd5 {[%clk 0:02:22.3]} 15. Nxd5 {[%clk 0:02:24.1]} 15... Nxd5
{[%clk 0:02:21.4]} 16. cxd5 {[%clk 0:02:25]} 16... O-O {[%clk 0:01:59.5]} 17.
Be3 {[%clk 0:02:24.2]} 17... a5 {[%clk 0:01:55.8]} 18. Rac1 {[%clk 0:02:14]}
18... Qd8 {[%clk 0:01:55]} 19. Rc2 {[%clk 0:01:52.1]} 19... Bg5 {[%clk
0:01:51.1]} 20. Bf2 {[%clk 0:01:46.8]} 20... Qf6 {[%clk 0:01:24.4]} 21. Bb5
{[%clk 0:01:45.8]} 21... Qh6 {[%clk 0:01:06.7]} 22. Bc6 {[%clk 0:01:43.6]} 22...
Rab8 {[%clk 0:01:05.8]} 23. g3 {[%clk 0:01:37.9]} 23... Qh3 {[%clk 0:01:02.8]}
24. Re1 {[%clk 0:01:12.4]} 24... g6 {[%clk 0:00:59.6]} 25. Bxc5 {[%clk
0:00:41.6]} 25... bxc5 {[%clk 0:00:58]} 26. Rf1 {[%clk 0:00:41.8]} 26... Rb4
{[%clk 0:00:41.4]} 27. a4 {[%clk 0:00:32.7]} 27... Rfb8 {[%clk 0:00:40.1]} 28.
Bb5 {[%clk 0:00:32.3]} 28... Rd4 {[%clk 0:00:25.3]} 29. b3 {[%clk 0:00:22.6]}
29... f6 {[%clk 0:00:21]} 30. Bc4 {[%clk 0:00:21.4]} 30... Rb4 {[%clk
0:00:18.5]} 31. Ra2 {[%clk 0:00:12.3]} 31... Kg7 {[%clk 0:00:16.8]} 32. Rc2
{[%clk 0:00:12.2]} 32... Qh6 {[%clk 0:00:17]} 33. Qf3 {[%clk 0:00:10.3]} 33...
Qh3 {[%clk 0:00:15.4]} 34. Re2 {[%clk 0:00:08.7]} 34... h5 {[%clk 0:00:09.1]}
35. Qg2 {[%clk 0:00:08.1]} 35... Qxg2+ {[%clk 0:00:09.1]} 36. Kxg2 {[%clk
0:00:08.4]} 36... h4 {[%clk 0:00:08.2]} 37. Rf3 {[%clk 0:00:07.6]} 37... gxf5
{[%clk 0:00:08.1]} 38. Rxf5 {[%clk 0:00:07.3]} 38... hxg3 {[%clk 0:00:08.6]} 39.
hxg3 {[%clk 0:00:07.2]} 39... Rb8 {[%clk 0:00:08.8]} 40. Re1 {[%clk 0:00:06.6]}
40... Rh8 {[%clk 0:00:09.2]} 41. Rf2 {[%clk 0:00:02.5]} 41... Rh6 {[%clk
0:00:04.8]} 42. Rfe2 {[%clk 0:00:02.7]} 42... Rd2 {[%clk 0:00:04.2]} 43. Rxd2
{[%clk 0:00:02.4]} 43... Bxd2 {[%clk 0:00:05.1]} 44. Rh1 {[%clk 0:00:02.4]}
44... Rxh1 {[%clk 0:00:04.8]} 45. Kxh1 {[%clk 0:00:02.9]} 45... Kh6 {[%clk
0:00:05.4]} 46. Kg2 {[%clk 0:00:02.5]} 46... Kg5 {[%clk 0:00:06.1]} 47. Kf3
{[%clk 0:00:03]} 47... f5 {[%clk 0:00:06.5]} 48. exf5 {[%clk 0:00:03.3]} 48...
Kxf5 {[%clk 0:00:07.4]} 49. Bd3+ {[%clk 0:00:03.3]} 49... Kf6 {[%clk 0:00:07.2]}
50. Be4 {[%clk 0:00:03.4]} 50... Bc3 {[%clk 0:00:06.8]} 51. g4 {[%clk
0:00:03.6]} 51... Kg5 {[%clk 0:00:06.8]} 52. Bf5 {[%clk 0:00:04.1]} 52... Bd4
{[%clk 0:00:06.5]} 53. Ke4 {[%clk 0:00:04.6]} 53... Kh4 {[%clk 0:00:06.1]} 54.
Kf3 {[%clk 0:00:03.6]} 54... Kg5 {[%clk 0:00:05.9]} 55. Bd3 {[%clk 0:00:03.3]}
55... Bc3 {[%clk 0:00:05.6]} 56. Be4 {[%clk 0:00:03.4]} 56... Bb4 {[%clk
0:00:05.7]} 57. Bd3 {[%clk 0:00:03.7]} 57... Bc3 {[%clk 0:00:06.2]} 58. Be4
{[%clk 0:00:04.3]} 58... Bb4 {[%clk 0:00:06.9]} 59. Bd3 {[%clk 0:00:04.9]} 59...
Bc3 {[%clk 0:00:07.6]} 1/2-1/2

[Event "Late-Titled-Tuesday-Blitz-May-28-2024"]
[Site "Chess.com"]
[Date "2024.05.28"]
[Round "1"]
[White "Ykow"]
[Black "BogdanDeac"]
[Result "1-0"]
[WhiteElo "2550"]
[BlackElo "3087"]
[TimeControl "180+1"]
[EndTime "14:08:15 PDT"]
[Termination "Ykow won by resignation"]

1. e4 {[%clk 0:02:59.7]} 1... c6 {[%clk 0:02:55.8]} 2. Nf3 {[%clk 0:02:59.3]}
2... d5 {[%clk 0:02:56.7]} 3. d3 {[%clk 0:03:00.1]} 3... a5 {[%clk 0:02:53.9]}
4. exd5 {[%clk 0:02:56.5]} 4... cxd5 {[%clk 0:02:53.7]} 5. d4 {[%clk 0:02:56.9]}
5... Nc6 {[%clk 0:02:50.2]} 6. Bb5 {[%clk 0:02:56.5]} 6... e6 {[%clk 0:02:48.6]}
7. O-O {[%clk 0:02:56.5]} 7... Bd6 {[%clk 0:02:48.3]} 8. c3 {[%clk 0:02:56.8]}
8... Ne7 {[%clk 0:02:48]} 9. a4 {[%clk 0:02:54.9]} 9... O-O {[%clk 0:02:47.6]}
10. Re1 {[%clk 0:02:54.7]} 10... f6 {[%clk 0:02:47.4]} 11. c4 {[%clk 0:02:50.6]}
11... Nb4 {[%clk 0:02:39.8]} 12. Nc3 {[%clk 0:02:49.4]} 12... Ng6 {[%clk
0:02:36.2]} 13. Qb3 {[%clk 0:02:41.2]} 13... Kh8 {[%clk 0:02:34.8]} 14. Bd2
{[%clk 0:02:33.6]} 14... Ne7 {[%clk 0:02:19.1]} 15. h3 {[%clk 0:02:27.3]} 15...
Bd7 {[%clk 0:02:18.7]} 16. cxd5 {[%clk 0:02:17.3]} 16... Nexd5 {[%clk 0:02:10]}
17. Nxd5 {[%clk 0:02:16.5]} 17... exd5 {[%clk 0:02:04.6]} 18. Bxd7 {[%clk
0:02:08.1]} 18... Qxd7 {[%clk 0:02:04.3]} 19. Re2 {[%clk 0:02:05.6]} 19... Rac8
{[%clk 0:02:00.3]} 20. Rae1 {[%clk 0:02:01.5]} 20... b6 {[%clk 0:01:59.8]} 21.
Re6 {[%clk 0:01:46.8]} 21... Rfd8 {[%clk 0:01:58.1]} 22. R1e2 {[%clk 0:01:45.3]}
22... Qc7 {[%clk 0:01:49]} 23. Ne1 {[%clk 0:01:27.3]} 23... Qc4 {[%clk
0:01:41.1]} 24. Qxc4 {[%clk 0:01:24.8]} 24... dxc4 {[%clk 0:01:41]} 25. Bc3
{[%clk 0:01:15.6]} 25... Kg8 {[%clk 0:01:36.2]} 26. Nc2 {[%clk 0:01:05.5]} 26...
Kf7 {[%clk 0:01:35.7]} 27. Bxb4 {[%clk 0:01:00.6]} 27... axb4 {[%clk 0:01:33.9]}
28. d5 {[%clk 0:00:59.4]} 28... Bc5 {[%clk 0:01:32.1]} 29. Ne3 {[%clk
0:00:57.7]} 29... c3 {[%clk 0:01:13.8]} 30. bxc3 {[%clk 0:00:54.5]} 30... bxc3
{[%clk 0:01:14.7]} 31. Rc2 {[%clk 0:00:49.1]} 31... Ra8 {[%clk 0:00:46.1]} 32.
Rxc3 {[%clk 0:00:46.5]} 32... Rxa4 {[%clk 0:00:45.8]} 33. Rd3 {[%clk 0:00:44]}
33... Ra1+ {[%clk 0:00:38.8]} 34. Kh2 {[%clk 0:00:44.1]} 34... Ra2 {[%clk
0:00:39]} 35. Kg3 {[%clk 0:00:42.7]} 35... h5 {[%clk 0:00:34.2]} 36. Kf3 {[%clk
0:00:42.1]} 36... Ra7 {[%clk 0:00:11.1]} 37. Rc6 {[%clk 0:00:38.8]} 37... Rad7
{[%clk 0:00:07.4]} 38. Ke4 {[%clk 0:00:35.4]} 38... Re7+ {[%clk 0:00:05.3]} 39.
Kf3 {[%clk 0:00:35.5]} 39... Re5 {[%clk 0:00:05.1]} 40. d6 {[%clk 0:00:33.4]}
40... Rd7 {[%clk 0:00:02.9]} 41. g4 {[%clk 0:00:26.4]} 41... hxg4+ {[%clk
0:00:02.7]} 42. hxg4 {[%clk 0:00:26]} 42... Re6 {[%clk 0:00:03.1]} 43. Nc4
{[%clk 0:00:25.9]} 43... g5 {[%clk 0:00:02]} 44. Rd5 {[%clk 0:00:18.2]} 44...
Kg6 {[%clk 0:00:02]} 45. Nxb6 {[%clk 0:00:17]} 45... Bxb6 {[%clk 0:00:02.2]} 46.
Rxb6 {[%clk 0:00:17.1]} 46... Kg7 {[%clk 0:00:02.7]} 47. Rc6 {[%clk 0:00:15.7]}
47... Kg6 {[%clk 0:00:03.2]} 48. Kg3 {[%clk 0:00:15]} 48... Kh6 {[%clk
0:00:03.5]} 49. f3 {[%clk 0:00:15.1]} 49... Kg6 {[%clk 0:00:03.6]} 50. Kf2
{[%clk 0:00:15.5]} 50... Kf7 {[%clk 0:00:03.3]} 51. f4 {[%clk 0:00:15.9]} 51...
gxf4 {[%clk 0:00:03.2]} 52. Kf3 {[%clk 0:00:16.5]} 52... Re5 {[%clk 0:00:03.3]}
53. Rd4 {[%clk 0:00:15.8]} 53... Ke6 {[%clk 0:00:03.1]} 54. Kxf4 {[%clk
0:00:15.8]} 54... Ra5 {[%clk 0:00:02.9]} 55. Re4+ {[%clk 0:00:15.7]} 55... Kd5
{[%clk 0:00:03]} 56. Rc8 {[%clk 0:00:15.6]} 56... Rxd6 {[%clk 0:00:03]} 57. Rcc4
{[%clk 0:00:14.8]} 57... Rb5 {[%clk 0:00:02.3]} 58. Kf5 {[%clk 0:00:12]} 58...
Rc5 {[%clk 0:00:02.1]} 59. Red4+ {[%clk 0:00:08.2]} 59... Kc6+ {[%clk
0:00:02.4]} 60. Rxc5+ {[%clk 0:00:08.7]} 60... Kxc5 {[%clk 0:00:02.7]} 61. Rxd6
{[%clk 0:00:09.4]} 61... Kxd6 {[%clk 0:00:03.6]} 62. Kxf6 {[%clk 0:00:10.2]} 1-0

[Event "Late-Titled-Tuesday-Blitz-May-28-2024"]
[Site "Chess.com"]
[Date "2024.05.28"]
[Round "1"]
[White "nitpicker"]
[Black "chess94cu"]
[Result "0-1"]
[WhiteElo "2339"]
[BlackElo "2625"]
[TimeControl "180+1"]
[EndTime "14:08:17 PDT"]
[Termination "chess94cu won on time"]

1. d4 {[%clk 0:03:00.2]} 1... Nf6 {[%clk 0:02:59.9]} 2. c4 {[%clk 0:02:58.9]}
2... e6 {[%clk 0:03:00]} 3. g3 {[%clk 0:02:58.4]} 3... d5 {[%clk 0:02:58.4]} 4.
Nf3 {[%clk 0:02:57.4]} 4... dxc4 {[%clk 0:02:57.3]} 5. Bg2 {[%clk 0:02:56.7]}
5... Nc6 {[%clk 0:02:56.7]} 6. Qa4 {[%clk 0:02:54.4]} 6... Bb4+ {[%clk
0:02:46.5]} 7. Bd2 {[%clk 0:02:54]} 7... Bxd2+ {[%clk 0:02:29.2]} 8. Nbxd2
{[%clk 0:02:49.3]} 8... O-O {[%clk 0:02:28.6]} 9. Qxc4 {[%clk 0:02:47.5]} 9...
Qd5 {[%clk 0:02:20.6]} 10. Rc1 {[%clk 0:02:44.2]} 10... Rd8 {[%clk 0:02:19.4]}
11. e3 {[%clk 0:02:31.6]} 11... Qxc4 {[%clk 0:02:03.6]} 12. Rxc4 {[%clk
0:02:30.6]} 12... Nd5 {[%clk 0:02:02.6]} 13. a3 {[%clk 0:02:19.6]} 13... Bd7
{[%clk 0:02:02.8]} 14. O-O {[%clk 0:02:18.2]} 14... Be8 {[%clk 0:02:02.3]} 15.
Rfc1 {[%clk 0:02:04.5]} 15... a5 {[%clk 0:02:01.9]} 16. Ne4 {[%clk 0:01:54.7]}
16... Nce7 {[%clk 0:01:58.2]} 17. Ne5 {[%clk 0:01:47.9]} 17... f6 {[%clk
0:01:50.7]} 18. Nf3 {[%clk 0:01:42.1]} 18... Bb5 {[%clk 0:01:48]} 19. Rxc7
{[%clk 0:01:27.5]} 19... Nxc7 {[%clk 0:01:47.9]} 20. Rxc7 {[%clk 0:01:27.5]}
20... Rac8 {[%clk 0:01:44.5]} 21. Rxc8 {[%clk 0:01:06.2]} 21... Rxc8 {[%clk
0:01:45.4]} 22. Nc3 {[%clk 0:00:59.5]} 22... Bc6 {[%clk 0:01:42.7]} 23. e4
{[%clk 0:00:57.2]} 23... b5 {[%clk 0:01:39.2]} 24. Bh3 {[%clk 0:00:49]} 24...
Kf7 {[%clk 0:01:23.7]} 25. d5 {[%clk 0:00:47.5]} 25... Bd7 {[%clk 0:01:23.8]}
26. Nd4 {[%clk 0:00:45.6]} 26... f5 {[%clk 0:01:15]} 27. dxe6+ {[%clk
0:00:32.7]} 27... Bxe6 {[%clk 0:01:14.9]} 28. Nxe6 {[%clk 0:00:31.7]} 28... Kxe6
{[%clk 0:01:15.8]} 29. Nxb5 {[%clk 0:00:30.6]} 29... Kf6 {[%clk 0:01:10.1]} 30.
Nc3 {[%clk 0:00:22.9]} 30... Rb8 {[%clk 0:01:06.2]} 31. Na4 {[%clk 0:00:17.1]}
31... fxe4 {[%clk 0:01:05.6]} 32. Kf1 {[%clk 0:00:17.6]} 32... Ke5 {[%clk
0:01:02.7]} 33. Ke2 {[%clk 0:00:16.4]} 33... Nc6 {[%clk 0:01:01.7]} 34. Ke3
{[%clk 0:00:15.3]} 34... Rb3+ {[%clk 0:01:01.2]} 35. Kd2 {[%clk 0:00:13.9]}
35... Nd4 {[%clk 0:00:55]} 36. Bf1 {[%clk 0:00:12.2]} 36... Nf3+ {[%clk
0:00:49]} 37. Kc2 {[%clk 0:00:12]} 37... Nd4+ {[%clk 0:00:46]} 38. Kd2 {[%clk
0:00:11.2]} 38... Rf3 {[%clk 0:00:46.6]} 39. Ke1 {[%clk 0:00:06.4]} 39... e3
{[%clk 0:00:45]} 40. fxe3 {[%clk 0:00:05.6]} 40... Rxe3+ {[%clk 0:00:45.9]} 41.
Kd2 {[%clk 0:00:05.7]} 41... Rf3 {[%clk 0:00:46.5]} 42. Bc4 {[%clk 0:00:05.4]}
42... Rf2+ {[%clk 0:00:46.7]} 43. Kc3 {[%clk 0:00:05.9]} 43... Rxh2 {[%clk
0:00:44.6]} 44. b4 {[%clk 0:00:06.5]} 44... axb4+ {[%clk 0:00:44.6]} 45. axb4
{[%clk 0:00:07.2]} 45... Rg2 {[%clk 0:00:44.8]} 46. b5 {[%clk 0:00:05.6]} 46...
Rxg3+ {[%clk 0:00:45.4]} 47. Kb4 {[%clk 0:00:06.1]} 47... h5 {[%clk 0:00:43.9]}
48. Kc5 {[%clk 0:00:06]} 48... Rg6 {[%clk 0:00:35.6]} 49. b6 {[%clk 0:00:05.5]}
49... Rc6+ {[%clk 0:00:35.4]} 50. Kb4 {[%clk 0:00:04.5]} 50... Rc8 {[%clk
0:00:31.6]} 51. b7 {[%clk 0:00:03.2]} 51... Rb8 {[%clk 0:00:31.9]} 52. Nc5
{[%clk 0:00:03.9]} 52... Kd6 {[%clk 0:00:32.4]} 53. Ba6 {[%clk 0:00:01.9]} 53...
h4 {[%clk 0:00:31.6]} 54. Ne4+ {[%clk 0:00:02.1]} 54... Kc7 {[%clk 0:00:31.5]}
55. Ng5 {[%clk 0:00:01]} 55... Kb6 {[%clk 0:00:24.9]} 56. Kc4 {[%clk 0:00:00.8]}
56... Kxa6 {[%clk 0:00:24.8]} 57. Kxd4 {[%clk 0:00:01.2]} 57... Rxb7 {[%clk
0:00:25.3]} 58. Ke4 {[%clk 0:00:01.7]} 58... Rb4+ {[%clk 0:00:23.5]} 59. Kf3
{[%clk 0:00:02]} 59... Kb6 {[%clk 0:00:23.7]} 60. Kf2 {[%clk 0:00:02.2]} 60...
Kc6 {[%clk 0:00:23.7]} 61. Nf3 {[%clk 0:00:03]} 61... Kd6 {[%clk 0:00:21.9]} 62.
Nh2 {[%clk 0:00:02.1]} 62... Ke6 {[%clk 0:00:21.1]} 63. Kg2 {[%clk 0:00:02.2]}
63... g5 {[%clk 0:00:21.2]} 64. Nf3 {[%clk 0:00:02.1]} 64... Kf5 {[%clk
0:00:21.1]} 65. Kf2 {[%clk 0:00:01.8]} 65... Kf4 {[%clk 0:00:20.1]} 0-1